[Event "Titled Tuesday Blitz June 28 Early 2022"]
[White "Gardezi, Arsal"]
[Black "Novikova, Galina"]
[WhiteFideId "30949521"]
[BlackFideId "4157095"]
[WhiteElo "1781"]
[BlackElo "1863"]
[Result "1-0"]
[Round "05"]
[TimeControl "180+1"]
[Date "2022.06.28"]
[WhiteClock "0:00:02"]
[BlackClock "0:00:04"]

1. e4 {[%clk 0:02:47]}  e6 {[%clk 0:03:00]} 2. d4 {[%clk 0:02:26]}  d5 {[%clk 0:03:00]} 3. Nd2 {[%clk 0:02:20]}  Nc6 {[%clk 0:03:00]} 4. Ngf3 {[%clk 0:02:11]}  g5 {[%clk 0:03:00]} 5. h3 {[%clk 0:02:06]}  Qf6 {[%clk 0:02:59]} 6. e5 {[%clk 0:02:05]}  Qg7 {[%clk 0:02:59]} 7. c3 {[%clk 0:02:01]}  Bd7 {[%clk 0:02:58]} 8. Bd3 {[%clk 0:01:59]}  O-O-O {[%clk 0:02:58]} 9. Nf1 {[%clk 0:01:57]}  h6 {[%clk 0:02:57]} 10. Ng3 {[%clk 0:01:56]}  f6 {[%clk 0:02:58]} 11. exf6 {[%clk 0:01:51]}  Nxf6 {[%clk 0:02:57]} 12. Be3 {[%clk 0:01:49]}  Bd6 {[%clk 0:02:55]} 13. Qc2 {[%clk 0:01:42]}  Kb8 {[%clk 0:02:54]} 14. O-O-O {[%clk 0:01:41]}  e5 {[%clk 0:02:53]} 15. dxe5 {[%clk 0:01:39]}  Nxe5 {[%clk 0:02:54]} 16. Nxe5 {[%clk 0:01:38]}  Bxe5 {[%clk 0:02:55]} 17. Nf5 {[%clk 0:01:36]}  Qf8 {[%clk 0:02:33]} 18. Rhe1 {[%clk 0:01:33]}  Bxf5 {[%clk 0:01:48]} 19. Bxf5 {[%clk 0:01:32]}  Qd6 {[%clk 0:01:49]} 20. Bd4 {[%clk 0:01:14]}  Rhe8 {[%clk 0:01:43]} 21. Bg6 {[%clk 0:01:00]}  Re7 {[%clk 0:01:36]} 22. Kb1 {[%clk 0:00:53]}  Bxd4 {[%clk 0:01:32]} 23. Rxe7 {[%clk 0:00:53]}  Qxe7 {[%clk 0:01:33]} 24. Rxd4 {[%clk 0:00:53]}  a6 {[%clk 0:01:23]} 25. Rd1 {[%clk 0:00:53]}  Qc5 {[%clk 0:01:19]} 26. Qd3 {[%clk 0:00:39]}  Rd6 {[%clk 0:01:16]} 27. Rd2 {[%clk 0:00:20]}  Re6 {[%clk 0:00:44]} 28. Kc2 {[%clk 0:00:19]}  Rb6 {[%clk 0:00:40]} 29. Kb1 {[%clk 0:00:15]}  Qa5 {[%clk 0:00:40]} 30. Qd4 {[%clk 0:00:14]}  Qb5 {[%clk 0:00:23]} 31. Bf7 {[%clk 0:00:14]}  Rd6 {[%clk 0:00:17]} 32. f3 {[%clk 0:00:13]}  Qf1+ {[%clk 0:00:16]} 33. Kc2 {[%clk 0:00:13]}  Qb5 {[%clk 0:00:16]} 34. Kb1 {[%clk 0:00:13]}  Qd7 {[%clk 0:00:15]} 35. Bg6 {[%clk 0:00:12]}  Qe7 {[%clk 0:00:13]} 36. Bd3 {[%clk 0:00:12]}  Re6 {[%clk 0:00:13]} 37. Kc2 {[%clk 0:00:12]}  Re1 {[%clk 0:00:12]} 38. Bf5 {[%clk 0:00:11]}  Nh5 {[%clk 0:00:12]} 39. Qh8+ {[%clk 0:00:10]}  Ka7 {[%clk 0:00:11]} 40. Qd4+ {[%clk 0:00:11]}  b6 {[%clk 0:00:11]} 41. Qxd5 {[%clk 0:00:12]}  Nf4 {[%clk 0:00:10]} 42. Qd7 {[%clk 0:00:12]}  Qxd7 {[%clk 0:00:10]} 43. Rxd7 {[%clk 0:00:12]}  Kb7 {[%clk 0:00:10]} 44. Be4+ {[%clk 0:00:13]}  Kc8 {[%clk 0:00:10]} 45. Rh7 {[%clk 0:00:12]}  Nxg2 {[%clk 0:00:10]} 46. Rh8+ {[%clk 0:00:12]}  Kd7 {[%clk 0:00:09]} 47. Rxh6 {[%clk 0:00:13]}  Nf4 {[%clk 0:00:09]} 48. Rh7+ {[%clk 0:00:13]}  Kd6 {[%clk 0:00:09]} 49. Rh6+ {[%clk 0:00:13]}  Kd7 {[%clk 0:00:09]} 50. Rh7+ {[%clk 0:00:13]}  Kd8 {[%clk 0:00:09]} 51. Rh8+ {[%clk 0:00:13]}  Ke7 {[%clk 0:00:09]} 52. Rg8 {[%clk 0:00:14]}  Nxh3 {[%clk 0:00:08]} 53. Bf5 {[%clk 0:00:13]}  Nf4 {[%clk 0:00:07]} 54. Rxg5 {[%clk 0:00:13]}  Nd5 {[%clk 0:00:06]} 55. Be4 {[%clk 0:00:12]}  Nf6 {[%clk 0:00:06]} 56. Re5+ {[%clk 0:00:12]}  Kd6 {[%clk 0:00:05]} 57. Rf5 {[%clk 0:00:10]}  Nd7 {[%clk 0:00:04]} 58. Rd5+ {[%clk 0:00:10]}  Ke7 {[%clk 0:00:02]} 59. Rd2 {[%clk 0:00:10]}  Nc5 {[%clk 0:00:03]} 60. Bd5 {[%clk 0:00:09]}  Rg1 {[%clk 0:00:03]} 61. b4 {[%clk 0:00:10]}  Na4 {[%clk 0:00:02]} 62. Kb3 {[%clk 0:00:10]}  b5 {[%clk 0:00:03]} 63. c4 {[%clk 0:00:09]}  Nb6 {[%clk 0:00:02]} 64. c5 {[%clk 0:00:10]}  Nxd5 {[%clk 0:00:03]} 65. Rxd5 {[%clk 0:00:10]}  Rg2 {[%clk 0:00:02]} 66. Rd3 {[%clk 0:00:10]}  Rg3 {[%clk 0:00:03]} 67. Re3+ {[%clk 0:00:11]}  Kd7 {[%clk 0:00:04]} 68. a4 {[%clk 0:00:12]}  Kc6 {[%clk 0:00:04]} 69. Re6+ {[%clk 0:00:11]}  Kb7 {[%clk 0:00:05]} 70. axb5 {[%clk 0:00:11]}  axb5 {[%clk 0:00:05]} 71. Re3 {[%clk 0:00:11]}  Rg1 {[%clk 0:00:06]} 72. Rc3 {[%clk 0:00:11]}  Rb1+ {[%clk 0:00:06]} 73. Kc2 {[%clk 0:00:12]}  Rf1 {[%clk 0:00:07]} 74. Kb3 {[%clk 0:00:12]}  c6 {[%clk 0:00:07]} 75. Re3 {[%clk 0:00:12]}  Rb1+ {[%clk 0:00:07]} 76. Kc3 {[%clk 0:00:13]}  Rf1 {[%clk 0:00:07]} 77. Kd3 {[%clk 0:00:12]}  Rb1 {[%clk 0:00:07]} 78. Re4 {[%clk 0:00:11]}  Rb3+ {[%clk 0:00:07]} 79. Ke2 {[%clk 0:00:12]}  Rb2+ {[%clk 0:00:07]} 80. Ke3 {[%clk 0:00:12]}  Rb1 {[%clk 0:00:06]} 81. Kf4 {[%clk 0:00:11]}  Kc7 {[%clk 0:00:06]} 82. Ke5 {[%clk 0:00:11]}  Kd7 {[%clk 0:00:07]} 83. f4 {[%clk 0:00:12]}  Rd1 {[%clk 0:00:07]} 84. Kf6 {[%clk 0:00:12]}  Rd5 {[%clk 0:00:08]} 85. f5 {[%clk 0:00:11]}  Rd1 {[%clk 0:00:08]} 86. Ke5 {[%clk 0:00:10]}  Rf1 {[%clk 0:00:06]} 87. f6 {[%clk 0:00:09]}  Rf2 {[%clk 0:00:06]} 88. Rf4 {[%clk 0:00:07]}  Re2+ {[%clk 0:00:04]} 89. Kf5 {[%clk 0:00:08]}  Ke8 {[%clk 0:00:05]} 90. Kg6 {[%clk 0:00:08]}  Kf8 {[%clk 0:00:05]} 91. Rh4 {[%clk 0:00:05]}  Rg2+ {[%clk 0:00:04]} 92. Kf5 {[%clk 0:00:06]}  Rf2+ {[%clk 0:00:05]} 93. Rf4 {[%clk 0:00:06]}  Rb2 {[%clk 0:00:03]} 94. Re4 {[%clk 0:00:06]}  Rf2+ {[%clk 0:00:03]} 95. Ke6 {[%clk 0:00:07]}  Rb2 {[%clk 0:00:03]} 96. Rd4 {[%clk 0:00:03]}  Re2+ {[%clk 0:00:02]} 97. Kd7 {[%clk 0:00:04]}  Rf2 {[%clk 0:00:02]} 98. Rd6 {[%clk 0:00:03]}  Rb2 {[%clk 0:00:01]} 99. Kxc6 {[%clk 0:00:03]}  Rxb4 {[%clk 0:00:02]} 100. Kb6 {[%clk 0:00:02]}  Rb3 {[%clk 0:00:02]} 101. c6 {[%clk 0:00:02]}  Ke8 {[%clk 0:00:03]} 102. c7 {[%clk 0:00:02]}  Rc3 {[%clk 0:00:03]} 103. Rd8+ {[%clk 0:00:01]}  Kf7 {[%clk 0:00:03]} 104. c8=Q {[%clk 0:00:02]}  Rc6+ {[%clk 0:00:03]} 105. Qxc6 {[%clk 0:00:02]}  Kg6 {[%clk 0:00:04]} 106. Qe8+ {[%clk 0:00:02]} 1-0


[Site "https://www.chess.com"]

[Event "Titled Tuesday Blitz June 28 Early 2022"]
[White "Ghazarian, Kirk"]
[Black "Djabri,Massinas"]
[WhiteFideId "30908604"]
[BlackFideId "7905726"]
[WhiteElo "2003"]
[BlackElo "1941"]
[Result "0-1"]
[Round "05"]
[TimeControl "180+1"]
[Date "2022.06.28"]
[WhiteClock "0:01:21"]
[BlackClock "0:01:15"]

1. e4 {[%clk 0:03:00]}  e5 {[%clk 0:02:24]} 2. d4 {[%clk 0:02:57]}  exd4 {[%clk 0:02:24]} 3. Qxd4 {[%clk 0:02:56]}  Nc6 {[%clk 0:02:24]} 4. Qe3 {[%clk 0:02:57]}  Nf6 {[%clk 0:02:24]} 5. Nc3 {[%clk 0:02:57]}  Bb4 {[%clk 0:02:25]} 6. Bd2 {[%clk 0:02:57]}  O-O {[%clk 0:02:25]} 7. O-O-O {[%clk 0:02:57]}  Re8 {[%clk 0:02:25]} 8. Qg3 {[%clk 0:02:56]}  Rxe4 {[%clk 0:02:26]} 9. a3 {[%clk 0:02:53]}  Rg4 {[%clk 0:02:18]} 10. Qf3 {[%clk 0:02:49]}  Be7 {[%clk 0:01:49]} 11. h3 {[%clk 0:02:47]}  Rd4 {[%clk 0:01:45]} 12. Nge2 {[%clk 0:02:45]}  Rd6 {[%clk 0:01:45]} 13. Ng3 {[%clk 0:02:43]}  Re6 {[%clk 0:01:44]} 14. Bf4 {[%clk 0:02:23]}  d6 {[%clk 0:01:39]} 15. Nf5 {[%clk 0:02:14]}  Nd7 {[%clk 0:01:26]} 16. Bc4 {[%clk 0:02:00]}  Rf6 {[%clk 0:01:25]} 17. Qg4 {[%clk 0:01:45]}  Rg6 {[%clk 0:01:24]} 18. Qh5 {[%clk 0:01:32]}  Nde5 {[%clk 0:01:23]} 19. Bb3 {[%clk 0:01:24]}  Bxf5 {[%clk 0:01:14]} 20. Qxf5 {[%clk 0:01:23]}  Rf6 {[%clk 0:01:15]} 21. Qe4 {[%clk 0:01:20]}  Rxf4 {[%clk 0:01:15]} 22. Qxf4 {[%clk 0:01:21]}  Bg5 {[%clk 0:01:15]} 0-1


[Site "https://www.chess.com"]

[Event "Titled Tuesday Blitz June 28 Early 2022"]
[White "Gormally, Daniel W"]
[Black "Martinez Alcantara, Jose Eduardo"]
[WhiteFideId "406465"]
[BlackFideId "3805662"]
[WhiteElo "2543"]
[BlackElo "2703"]
[Result "1-0"]
[Round "05"]
[TimeControl "180+1"]
[Date "2022.06.28"]
[WhiteClock "0:00:15"]
[BlackClock "0:00:26"]

1. e4 {[%clk 0:03:00]}  c5 {[%clk 0:03:00]} 2. Nc3 {[%clk 0:03:00]}  Nc6 {[%clk 0:02:59]} 3. Bb5 {[%clk 0:03:00]}  g6 {[%clk 0:03:00]} 4. Bxc6 {[%clk 0:03:00]}  bxc6 {[%clk 0:03:00]} 5. d3 {[%clk 0:03:00]}  Bg7 {[%clk 0:03:00]} 6. Be3 {[%clk 0:02:58]}  d6 {[%clk 0:03:00]} 7. Nge2 {[%clk 0:02:58]}  f5 {[%clk 0:02:56]} 8. exf5 {[%clk 0:02:53]}  Bxf5 {[%clk 0:02:56]} 9. O-O {[%clk 0:02:49]}  Nf6 {[%clk 0:02:55]} 10. h3 {[%clk 0:02:45]}  O-O {[%clk 0:02:55]} 11. Qd2 {[%clk 0:02:45]}  e5 {[%clk 0:02:55]} 12. f4 {[%clk 0:02:38]}  exf4 {[%clk 0:02:38]} 13. Bxf4 {[%clk 0:02:37]}  Nd5 {[%clk 0:02:35]} 14. Bh6 {[%clk 0:02:36]}  Qe7 {[%clk 0:02:30]} 15. Bxg7 {[%clk 0:02:33]}  Qxg7 {[%clk 0:02:31]} 16. Rf3 {[%clk 0:02:27]}  Rab8 {[%clk 0:02:27]} 17. b3 {[%clk 0:02:25]}  Rbe8 {[%clk 0:01:58]} 18. Raf1 {[%clk 0:02:23]}  Nxc3 {[%clk 0:01:56]} 19. Nxc3 {[%clk 0:02:20]}  h5 {[%clk 0:01:56]} 20. Ne2 {[%clk 0:02:04]}  Qe5 {[%clk 0:01:37]} 21. Ng3 {[%clk 0:02:01]}  Be6 {[%clk 0:01:00]} 22. Qh6 {[%clk 0:02:00]}  Qg7 {[%clk 0:00:38]} 23. Rxf8+ {[%clk 0:01:56]}  Rxf8 {[%clk 0:00:39]} 24. Rxf8+ {[%clk 0:01:55]}  Kxf8 {[%clk 0:00:39]} 25. Qxg7+ {[%clk 0:01:55]}  Kxg7 {[%clk 0:00:40]} 26. Ne4 {[%clk 0:01:56]}  d5 {[%clk 0:00:38]} 27. Nxc5 {[%clk 0:01:55]}  Bc8 {[%clk 0:00:39]} 28. Kf2 {[%clk 0:01:43]}  h4 {[%clk 0:00:39]} 29. Kf3 {[%clk 0:01:34]}  Kf6 {[%clk 0:00:39]} 30. d4 {[%clk 0:01:34]}  g5 {[%clk 0:00:40]} 31. c3 {[%clk 0:01:30]}  Bf5 {[%clk 0:00:40]} 32. b4 {[%clk 0:01:22]}  Ke7 {[%clk 0:00:40]} 33. g4 {[%clk 0:01:15]}  Bc8 {[%clk 0:00:26]} 34. a4 {[%clk 0:01:10]}  Kd6 {[%clk 0:00:27]} 35. Nd3 {[%clk 0:01:03]}  Kc7 {[%clk 0:00:21]} 36. Ne5 {[%clk 0:00:49]}  Be6 {[%clk 0:00:20]} 37. Ke3 {[%clk 0:00:33]}  a5 {[%clk 0:00:21]} 38. bxa5 {[%clk 0:00:30]}  Kb7 {[%clk 0:00:21]} 39. Nf3 {[%clk 0:00:20]}  Ka6 {[%clk 0:00:20]} 40. Nxg5 {[%clk 0:00:21]}  Bg8 {[%clk 0:00:21]} 41. Nf3 {[%clk 0:00:21]}  Kxa5 {[%clk 0:00:22]} 42. Nxh4 {[%clk 0:00:21]}  Kxa4 {[%clk 0:00:22]} 43. Kd2 {[%clk 0:00:22]}  Kb3 {[%clk 0:00:23]} 44. Nf5 {[%clk 0:00:21]}  Kc4 {[%clk 0:00:24]} 45. Ne7 {[%clk 0:00:21]}  Be6 {[%clk 0:00:23]} 46. g5 {[%clk 0:00:21]}  c5 {[%clk 0:00:21]} 47. dxc5 {[%clk 0:00:19]}  Kxc5 {[%clk 0:00:22]} 48. h4 {[%clk 0:00:14]}  Kd6 {[%clk 0:00:23]} 49. Ng6 {[%clk 0:00:15]}  Bf5 {[%clk 0:00:24]} 50. Nf4 {[%clk 0:00:15]}  Ke5 {[%clk 0:00:24]} 51. Ke3 {[%clk 0:00:15]}  Bg4 {[%clk 0:00:24]} 52. g6 {[%clk 0:00:15]}  Kf5 {[%clk 0:00:25]} 53. g7 {[%clk 0:00:15]}  d4+ {[%clk 0:00:24]} 54. cxd4 {[%clk 0:00:15]}  Kf6 {[%clk 0:00:25]} 55. g8=Q {[%clk 0:00:15]}  Bf5 {[%clk 0:00:26]} 56. Qg5+ {[%clk 0:00:15]} 1-0


[Site "https://www.chess.com"]

[Event "Titled Tuesday Blitz June 28 Early 2022"]
[White "Hafiz, Arif Abdul"]
[Black "Al-Tarboush, Ward"]
[WhiteFideId "7104227"]
[BlackFideId "7601450"]
[WhiteElo "2198"]
[BlackElo "2249"]
[Result "0-1"]
[Round "05"]
[TimeControl "180+1"]
[Date "2022.06.28"]
[WhiteClock "0:00:55"]
[BlackClock "0:00:57"]

1. e4 {[%clk 0:02:56]}  e6 {[%clk 0:03:00]} 2. d4 {[%clk 0:02:56]}  d5 {[%clk 0:03:00]} 3. Nc3 {[%clk 0:02:57]}  Nf6 {[%clk 0:03:00]} 4. Bg5 {[%clk 0:02:56]}  dxe4 {[%clk 0:03:00]} 5. Nxe4 {[%clk 0:02:57]}  Be7 {[%clk 0:03:01]} 6. Bxf6 {[%clk 0:02:57]}  gxf6 {[%clk 0:03:01]} 7. Nf3 {[%clk 0:02:58]}  f5 {[%clk 0:03:02]} 8. Ng3 {[%clk 0:02:57]}  c5 {[%clk 0:03:01]} 9. Qd2 {[%clk 0:02:51]}  h5 {[%clk 0:03:00]} 10. h4 {[%clk 0:02:47]}  Nc6 {[%clk 0:02:45]} 11. O-O-O {[%clk 0:02:38]}  cxd4 {[%clk 0:02:17]} 12. Nxd4 {[%clk 0:02:39]}  Qxd4 {[%clk 0:01:59]} 13. Qxd4 {[%clk 0:02:40]}  Nxd4 {[%clk 0:02:00]} 14. Rxd4 {[%clk 0:02:39]}  Bd7 {[%clk 0:01:44]} 15. Be2 {[%clk 0:02:05]}  Bc6 {[%clk 0:01:44]} 16. Nxh5 {[%clk 0:01:59]}  Bxg2 {[%clk 0:01:40]} 17. Rg1 {[%clk 0:01:56]}  Bc6 {[%clk 0:01:24]} 18. c4 {[%clk 0:01:23]}  Bc5 {[%clk 0:01:23]} 19. Rd3 {[%clk 0:01:16]}  Bxf2 {[%clk 0:01:17]} 20. Rf1 {[%clk 0:01:11]}  Bxh4 {[%clk 0:01:14]} 21. b4 {[%clk 0:01:11]}  Bg5+ {[%clk 0:01:11]} 22. Kb2 {[%clk 0:01:10]}  Be4 {[%clk 0:01:09]} 23. Rdd1 {[%clk 0:01:07]}  Ke7 {[%clk 0:01:06]} 24. c5 {[%clk 0:01:05]}  Be3 {[%clk 0:00:58]} 25. Kb3 {[%clk 0:00:57]}  a5 {[%clk 0:00:56]} 26. a3 {[%clk 0:00:54]}  axb4 {[%clk 0:00:56]} 27. axb4 {[%clk 0:00:55]}  Bd5+ {[%clk 0:00:57]} 0-1


[Site "https://www.chess.com"]

[Event "Titled Tuesday Blitz June 28 Early 2022"]
[White "Hamley, Ryan"]
[Black "Barria Zuniga, Daniel"]
[WhiteFideId "30959497"]
[BlackFideId "3400816"]
[WhiteElo "2484"]
[BlackElo "2414"]
[Result "0-1"]
[Round "05"]
[TimeControl "180+1"]
[Date "2022.06.28"]
[WhiteClock "0:00:46"]
[BlackClock "0:01:48"]

1. d4 {[%clk 0:02:52]}  Nf6 {[%clk 0:02:59]} 2. c4 {[%clk 0:02:51]}  e6 {[%clk 0:02:59]} 3. g3 {[%clk 0:02:43]}  c5 {[%clk 0:02:55]} 4. d5 {[%clk 0:02:43]}  exd5 {[%clk 0:02:54]} 5. cxd5 {[%clk 0:02:44]}  d6 {[%clk 0:02:55]} 6. Bg2 {[%clk 0:02:44]}  g6 {[%clk 0:02:56]} 7. Nc3 {[%clk 0:02:42]}  Bg7 {[%clk 0:02:56]} 8. Nf3 {[%clk 0:02:41]}  O-O {[%clk 0:02:57]} 9. O-O {[%clk 0:02:41]}  a6 {[%clk 0:02:57]} 10. a4 {[%clk 0:02:40]}  Re8 {[%clk 0:02:57]} 11. Nd2 {[%clk 0:02:25]}  Nbd7 {[%clk 0:02:56]} 12. Nc4 {[%clk 0:02:22]}  Ne5 {[%clk 0:02:54]} 13. Nxe5 {[%clk 0:02:22]}  Rxe5 {[%clk 0:02:55]} 14. Bf4 {[%clk 0:02:22]}  Re8 {[%clk 0:02:53]} 15. e4 {[%clk 0:02:22]}  Ng4 {[%clk 0:02:45]} 16. h3 {[%clk 0:02:15]}  Ne5 {[%clk 0:02:45]} 17. a5 {[%clk 0:02:08]}  b5 {[%clk 0:02:42]} 18. axb6 {[%clk 0:02:08]}  Qxb6 {[%clk 0:02:42]} 19. Qc2 {[%clk 0:02:03]}  a5 {[%clk 0:02:41]} 20. Rfe1 {[%clk 0:01:51]}  Ba6 {[%clk 0:02:39]} 21. Rad1 {[%clk 0:01:31]}  Rab8 {[%clk 0:02:29]} 22. Bc1 {[%clk 0:01:26]}  Qb3 {[%clk 0:02:22]} 23. Qb1 {[%clk 0:01:07]}  Nc4 {[%clk 0:02:15]} 24. Qd3 {[%clk 0:00:57]}  Rb6 {[%clk 0:02:04]} 25. Qf3 {[%clk 0:00:50]}  a4 {[%clk 0:01:51]} 26. Bf1 {[%clk 0:00:46]}  a3 {[%clk 0:01:48]} 0-1


[Site "https://www.chess.com"]

[Event "Titled Tuesday Blitz June 28 Early 2022"]
[White "Heinemann, Josefine"]
[Black "Saito, Vinicius"]
[WhiteFideId "12900460"]
[BlackFideId "2113384"]
[WhiteElo "2300"]
[BlackElo "2168"]
[Result "0-1"]
[Round "05"]
[TimeControl "180+1"]
[Date "2022.06.28"]
[WhiteClock "0:00:04"]
[BlackClock "0:00:19"]

1. Nf3 {[%clk 0:03:00]}  Nf6 {[%clk 0:02:57]} 2. c4 {[%clk 0:02:58]}  g6 {[%clk 0:02:58]} 3. Nc3 {[%clk 0:02:55]}  Bg7 {[%clk 0:02:58]} 4. d4 {[%clk 0:02:49]}  O-O {[%clk 0:02:58]} 5. g3 {[%clk 0:02:49]}  d6 {[%clk 0:02:58]} 6. Bg2 {[%clk 0:02:49]}  Nc6 {[%clk 0:02:58]} 7. O-O {[%clk 0:02:48]}  a6 {[%clk 0:02:58]} 8. b3 {[%clk 0:02:44]}  Rb8 {[%clk 0:02:58]} 9. Bb2 {[%clk 0:02:41]}  b5 {[%clk 0:02:52]} 10. cxb5 {[%clk 0:02:39]}  axb5 {[%clk 0:02:52]} 11. e3 {[%clk 0:02:21]}  Bd7 {[%clk 0:02:49]} 12. Qe2 {[%clk 0:02:17]}  b4 {[%clk 0:02:35]} 13. Na4 {[%clk 0:02:17]}  e6 {[%clk 0:02:28]} 14. Rfc1 {[%clk 0:02:15]}  Ne7 {[%clk 0:02:25]} 15. e4 {[%clk 0:02:12]}  Bxa4 {[%clk 0:02:24]} 16. bxa4 {[%clk 0:02:11]}  Qd7 {[%clk 0:02:21]} 17. a5 {[%clk 0:02:09]}  c6 {[%clk 0:02:10]} 18. a6 {[%clk 0:02:07]}  Ra8 {[%clk 0:02:09]} 19. a3 {[%clk 0:02:04]}  Rfb8 {[%clk 0:01:57]} 20. axb4 {[%clk 0:01:57]}  Rxb4 {[%clk 0:01:56]} 21. Bc3 {[%clk 0:01:57]}  Rb6 {[%clk 0:01:53]} 22. Bf1 {[%clk 0:01:51]}  d5 {[%clk 0:01:39]} 23. e5 {[%clk 0:01:49]}  Ne4 {[%clk 0:01:39]} 24. Be1 {[%clk 0:01:47]}  Qa7 {[%clk 0:01:16]} 25. Rcb1 {[%clk 0:01:40]}  Bf8 {[%clk 0:01:12]} 26. Qc2 {[%clk 0:01:30]}  Nf5 {[%clk 0:01:09]} 27. Rxb6 {[%clk 0:01:04]}  Qxb6 {[%clk 0:01:09]} 28. Qd3 {[%clk 0:01:04]}  c5 {[%clk 0:01:07]} 29. Rb1 {[%clk 0:00:59]}  Qc6 {[%clk 0:01:02]} 30. dxc5 {[%clk 0:00:53]}  Bxc5 {[%clk 0:01:01]} 31. Qb5 {[%clk 0:00:51]}  Qxb5 {[%clk 0:00:48]} 32. Bxb5 {[%clk 0:00:50]}  Ba7 {[%clk 0:00:38]} 33. Kg2 {[%clk 0:00:39]}  Rb8 {[%clk 0:00:36]} 34. Bd3 {[%clk 0:00:34]}  Rxb1 {[%clk 0:00:35]} 35. Bxb1 {[%clk 0:00:35]}  Nc5 {[%clk 0:00:36]} 36. g4 {[%clk 0:00:29]}  Ng7 {[%clk 0:00:28]} 37. Nd4 {[%clk 0:00:21]}  Nxa6 {[%clk 0:00:27]} 38. Nc6 {[%clk 0:00:21]}  Bc5 {[%clk 0:00:25]} 39. Bd3 {[%clk 0:00:20]}  Nc7 {[%clk 0:00:22]} 40. f4 {[%clk 0:00:20]}  Nge8 {[%clk 0:00:20]} 41. Ba5 {[%clk 0:00:19]}  Na8 {[%clk 0:00:19]} 42. h4 {[%clk 0:00:19]}  Nac7 {[%clk 0:00:19]} 43. h5 {[%clk 0:00:18]}  Kg7 {[%clk 0:00:19]} 44. Kg3 {[%clk 0:00:16]}  Kh6 {[%clk 0:00:18]} 45. hxg6 {[%clk 0:00:15]}  hxg6 {[%clk 0:00:18]} 46. g5+ {[%clk 0:00:16]}  Kg7 {[%clk 0:00:18]} 47. Nb4 {[%clk 0:00:12]}  Kf8 {[%clk 0:00:18]} 48. Nc2 {[%clk 0:00:12]}  Na8 {[%clk 0:00:16]} 49. Ne1 {[%clk 0:00:12]}  Bb6 {[%clk 0:00:16]} 50. Bb4+ {[%clk 0:00:12]}  Kg7 {[%clk 0:00:16]} 51. Nf3 {[%clk 0:00:11]}  Bc7 {[%clk 0:00:15]} 52. Nh2 {[%clk 0:00:11]}  Nb6 {[%clk 0:00:16]} 53. Ng4 {[%clk 0:00:11]}  Nc4 {[%clk 0:00:16]} 54. Nf6 {[%clk 0:00:11]}  Nxf6 {[%clk 0:00:17]} 55. exf6+ {[%clk 0:00:11]}  Kg8 {[%clk 0:00:17]} 56. Kf3 {[%clk 0:00:10]}  Nd6 {[%clk 0:00:16]} 57. Ba3 {[%clk 0:00:08]}  Nf5 {[%clk 0:00:16]} 58. Bb5 {[%clk 0:00:07]}  Nd4+ {[%clk 0:00:16]} 59. Ke3 {[%clk 0:00:07]}  Nxb5 {[%clk 0:00:17]} 60. Bc5 {[%clk 0:00:07]}  Nd6 {[%clk 0:00:16]} 61. Kf3 {[%clk 0:00:06]}  Nc4 {[%clk 0:00:17]} 62. Bd4 {[%clk 0:00:06]}  Bd6 {[%clk 0:00:16]} 63. Bc3 {[%clk 0:00:05]}  Kf8 {[%clk 0:00:17]} 64. Bd4 {[%clk 0:00:06]}  Ke8 {[%clk 0:00:17]} 65. Bc3 {[%clk 0:00:06]}  Kd7 {[%clk 0:00:18]} 66. Bd4 {[%clk 0:00:06]}  e5 {[%clk 0:00:19]} 67. fxe5 {[%clk 0:00:06]}  Nxe5+ {[%clk 0:00:19]} 68. Kf2 {[%clk 0:00:06]}  Ke6 {[%clk 0:00:19]} 69. Bb2 {[%clk 0:00:05]}  Kf5 {[%clk 0:00:19]} 70. Kg2 {[%clk 0:00:04]}  Kxg5 {[%clk 0:00:19]} 0-1


[Site "https://www.chess.com"]

[Event "Titled Tuesday Blitz June 28 Early 2022"]
[White "Hovhannisyan, Robert"]
[Black "Kollars, Dmitrij"]
[WhiteFideId "13302507"]
[BlackFideId "12909572"]
[WhiteElo "2570"]
[BlackElo "2584"]
[Result "0-1"]
[Round "05"]
[TimeControl "180+1"]
[Date "2022.06.28"]
[WhiteClock "0:00:05"]
[BlackClock "0:00:15"]

1. e4 {[%clk 0:03:00]}  c5 {[%clk 0:02:55]} 2. Nf3 {[%clk 0:03:00]}  Nc6 {[%clk 0:02:55]} 3. d4 {[%clk 0:02:59]}  cxd4 {[%clk 0:02:55]} 4. Nxd4 {[%clk 0:03:00]}  Nf6 {[%clk 0:02:54]} 5. Nc3 {[%clk 0:03:00]}  d6 {[%clk 0:02:52]} 6. Bg5 {[%clk 0:02:58]}  e6 {[%clk 0:02:53]} 7. Qd2 {[%clk 0:02:57]}  a6 {[%clk 0:02:50]} 8. Nxc6 {[%clk 0:02:57]}  bxc6 {[%clk 0:02:49]} 9. O-O-O {[%clk 0:02:57]}  Bb7 {[%clk 0:02:47]} 10. f4 {[%clk 0:02:34]}  h6 {[%clk 0:02:47]} 11. Bxf6 {[%clk 0:02:28]}  gxf6 {[%clk 0:02:40]} 12. Bc4 {[%clk 0:02:25]}  Qc7 {[%clk 0:02:31]} 13. f5 {[%clk 0:02:19]}  d5 {[%clk 0:02:17]} 14. Bb3 {[%clk 0:02:09]}  Bd6 {[%clk 0:02:12]} 15. Rhf1 {[%clk 0:01:58]}  O-O-O {[%clk 0:01:14]} 16. Qd3 {[%clk 0:01:41]}  Be5 {[%clk 0:01:11]} 17. Qh3 {[%clk 0:01:36]}  Kb8 {[%clk 0:01:06]} 18. Kb1 {[%clk 0:01:22]}  Rd6 {[%clk 0:00:59]} 19. Na4 {[%clk 0:01:12]}  c5 {[%clk 0:00:58]} 20. c4 {[%clk 0:00:45]}  dxe4 {[%clk 0:00:51]} 21. Rxd6 {[%clk 0:00:35]}  Qxd6 {[%clk 0:00:52]} 22. Rd1 {[%clk 0:00:35]}  Bd4 {[%clk 0:00:53]} 23. Bc2 {[%clk 0:00:28]}  Ka7 {[%clk 0:00:45]} 24. Nc3 {[%clk 0:00:26]}  Qe5 {[%clk 0:00:43]} 25. Qg4 {[%clk 0:00:15]}  Qxf5 {[%clk 0:00:31]} 26. Qxf5 {[%clk 0:00:15]}  exf5 {[%clk 0:00:32]} 27. Rf1 {[%clk 0:00:13]}  Bxc3 {[%clk 0:00:31]} 28. bxc3 {[%clk 0:00:14]}  Bc8 {[%clk 0:00:32]} 29. Kc1 {[%clk 0:00:11]}  Rg8 {[%clk 0:00:30]} 30. g3 {[%clk 0:00:11]}  Be6 {[%clk 0:00:30]} 31. Kd2 {[%clk 0:00:10]}  h5 {[%clk 0:00:30]} 32. Rf4 {[%clk 0:00:09]}  Kb6 {[%clk 0:00:28]} 33. Ke3 {[%clk 0:00:07]}  Kc7 {[%clk 0:00:26]} 34. Bd1 {[%clk 0:00:06]}  Kd6 {[%clk 0:00:19]} 35. Bxh5 {[%clk 0:00:06]}  Rh8 {[%clk 0:00:18]} 36. Rh4 {[%clk 0:00:05]}  Ke5 {[%clk 0:00:16]} 37. a3 {[%clk 0:00:04]}  a5 {[%clk 0:00:15]} 38. Kf2 {[%clk 0:00:03]}  Bxc4 {[%clk 0:00:15]} 39. Ke3 {[%clk 0:00:03]}  Be6 {[%clk 0:00:15]} 40. Kf2 {[%clk 0:00:03]}  Rd8 {[%clk 0:00:15]} 41. Be2 {[%clk 0:00:03]}  Rd2 {[%clk 0:00:15]} 42. Ke3 {[%clk 0:00:03]}  Rc2 {[%clk 0:00:16]} 43. Rh8 {[%clk 0:00:02]}  Rxc3+ {[%clk 0:00:16]} 44. Kd2 {[%clk 0:00:03]}  Rxa3 {[%clk 0:00:16]} 45. Ra8 {[%clk 0:00:04]}  e3+ {[%clk 0:00:16]} 46. Kc2 {[%clk 0:00:04]}  Ra2+ {[%clk 0:00:17]} 47. Kd3 {[%clk 0:00:04]}  Ra3+ {[%clk 0:00:16]} 48. Kc2 {[%clk 0:00:04]}  f4 {[%clk 0:00:15]} 49. gxf4+ {[%clk 0:00:05]}  Kxf4 {[%clk 0:00:16]} 50. Kb2 {[%clk 0:00:06]}  Ra2+ {[%clk 0:00:16]} 51. Kc3 {[%clk 0:00:05]}  Rxe2 {[%clk 0:00:17]} 52. Rxa5 {[%clk 0:00:05]}  Re1 {[%clk 0:00:15]} 53. Ra4+ {[%clk 0:00:05]}  Ke5 {[%clk 0:00:15]} 54. Rh4 {[%clk 0:00:05]}  f5 {[%clk 0:00:14]} 55. Rh8 {[%clk 0:00:04]}  f4 {[%clk 0:00:14]} 56. Rg8 {[%clk 0:00:04]}  f3 {[%clk 0:00:14]} 57. Rg5+ {[%clk 0:00:05]}  f5 {[%clk 0:00:15]} 0-1


[Site "https://www.chess.com"]